Cogmind - Beta 9.6 @@@ ROGUE MODE // 2020.07.01 @ 01:41:27 Player: Mr.Manatee Result: Destroyed by Y-45 Defender with Beam Rifle Performance ------------- Evolutions (1) 500 Regions Visited (2) 400 Robots Destroyed (25) 125 Value Destroyed (707) 707 Prototype IDs (4) 80 Alien Tech Used (0) 0 Bonus (0) 0 TOTAL SCORE: 1812 Bonus ------- None Cogmind --------- Core Integrity 0/400 Matter 231/300 Energy 98/100 System Corruption 0% Temperature Cool (10) Movement Treading (160) Location -9/Materials Parts ------- > --- POWER (1) -------- (None) > --- PROPULSION (2) --- Light Treads > --- UTILITY (4) ------ Heat Sink Medium Storage Unit > --- WEAPON (2) ------- (None) > --- INVENTORY (8) ---- Ion Engine Ion Engine Small Storage Unit Peak State ------------ > --- POWER ------------ Light Nuclear Core > --- PROPULSION ------- Aluminum Leg Aluminum Leg > --- UTILITY ---------- Improved Heat Sink Medium Storage Unit > --- WEAPON ----------- Heavy Hammer Heavy Hammer > --- INVENTORY -------- Ion Engine Ion Engine Ion Engine Small Storage Unit Particle Gun Particle Gun Assault Rifle Assault Rifle [Rating: 14] Favorites ----------- Power Light Nuclear Core Engine Ion Engine Power Core Light Nuclear Core Propulsion Aluminum Leg Treads Light Treads Leg Aluminum Leg Utility Medium Storage Unit Device Improved Heat Sink Storage Medium Storage Unit Protection Light Armor Plating Weapon Assault Rifle Energy Gun Particle Gun Ballistic Gun Assault Rifle Impact Weapon Heavy Hammer Build | -11 -10 -9 ------- Run | Scr Mat Mat Slots Evolved 2 | . . 2 Power . | . . . Propulsion . | . . . Utility 2 | . . 2 Weapon . | . . . Parts Attached 27 | 7 8 12 Power 4 | 2 1 1 Engine 3 | 2 . 1 Core 1 | . 1 . Reactor . | . . . Propulsion 4 | 2 . 2 Treads 2 | . . 2 Leg 2 | 2 . . Wheel . | . . . Hover . | . . . Flight . | . . . Utility 7 | 1 3 3 Device 3 | . 2 1 Storage 3 | 1 1 1 Processor . | . . . Hackware . | . . . Protection 1 | . . 1 Artifact . | . . . Weapon 12 | 2 4 6 Energy Gun 4 | . 2 2 Energy Cannon . | . . . Ballistic Gun 6 | 2 2 2 Ballistic Cannon . | . . . Launcher . | . . . Special Weapon . | . . . Impact Weapon 2 | . . 2 Slashing Weapon . | . . . Piercing Weapon . | . . . Special Melee Weapon . | . . . Unidentified Prototypes . | . . . Parts Lost 14 | . 2 12 Power 2 | . . 2 Propulsion 3 | . . 3 Utility 2 | . . 2 Weapon 7 | . 2 5 Highest Loss Streak 5 | . 2 5 Average Slot Usage (%) 79 | . 97 66 Engine 4 | . 7 2 Core 6 | . 6 5 Treads 3 | . . 5 Leg 18 | . 28 11 Device 10 | . 12 8 Storage 12 | . 14 11 Energy Gun 5 | . 8 4 Ballistic Gun 13 | . 18 9 Impact Weapon 3 | . . 5 Naked Turns . | . . . Heaviest Build 23 | 13 23 21 Greatest Support 40 | 20 20 40 Greatest Overweight (x) 5 | . 1 5 Average Overweight (x) . | . . . Largest Inventory Capacity 10 | 6 8 10 Average Capacity 7 | 5 6 8 Most Carried 8 | 4 6 8 Average Carried 5 | 2 5 5 Final Capacity 8 | 6 8 8 Final Carried 6 | 2 6 3 Class Distribution -------------------- 90% | Mutant 9% | Scavenger-Mutant Dominant Class ---------------- Mutant | -10/Materials Mutant | -9/Materials Resources | -11 -10 -9 ----------- Run | Scr Mat Mat Matter Collected 644 | 226 180 238 Remotely . | . . . Salvage Created 967 | . 337 630 Parts 61 | . 25 36 Haulers Intercepted . | . . . Recyclers Shooed . | . . . Parts Field Recycled 4 | . 4 . Retrieved Matter 27 | . 27 . Parts Self-Destructed . | . . . Prevented . | . . . Kills | -11 -10 -9 ------- Run | Scr Mat Mat Combat Hostiles Destroyed 19 | . 7 12 Melee 1 | . . 1 Guns 15 | . 7 8 Classes Destroyed 8 | . 4 4 Worker 1 | . . 1 Recycler 2 | . 1 1 Watcher 3 | . 2 1 Swarmer 3 | . 3 . Grunt 10 | . 4 6 Brawler 1 | . . 1 Duelist 1 | . . 1 Sentry 4 | . . 4 Best Kill Streak 7 | . 4 7 Combat Bots Only 4 | . 3 4 Max Kills in Single Turn 2 | . 2 1 Gunslinging 1 | . 1 . Exploded . | . . . Melee 1 | . . 1 Uniques/NPCs Destroyed . | . . . Combat | -11 -10 -9 -------- Run | Scr Mat Mat Damage Taken 1779 | . 351 1428 Core 438 | . 36 402 Absorbed by Shields . | . . . Core Remaining (%) 92 | 100 85 . Volleys Fired 82 | . 33 49 Largest 2 | . 2 2 Hottest 130 | . 130 65 Shots Fired 123 | . 55 68 Gun 123 | . 55 68 Cannon . | . . . Launcher . | . . . Special . | . . . Kinetic 100 | . 37 63 Thermal 23 | . 18 5 Explosive . | . . . Electromagnetic . | . . . Robot Hit Streak 10 | . 10 9 Robot Miss Streak 5 | . 5 4 Penetration Max . | . . . Secondary Targets 3 | . 3 . Max Gunslinging Chain 1 | . 1 . Shots Hit Robots 108 | . 35 73 Core Hits 36 | . 13 23 Critical Hits . | . . . Critical Kills . | . . . Critical Parts Destroyed . | . . . Melee Attacks 32 | . . 32 Impact 32 | . . 32 Slashing . | . . . Piercing . | . . . Sneak Attacks . | . . . Combat Hostiles . | . . . Follow-up Attacks . | . . . Damage Inflicted 1671 | . 466 1205 Guns 1113 | . 466 647 Cannons . | . . . Explosions . | . . . Melee 558 | . . 558 Ramming . | . . . Kinetic 839 | . 250 589 Thermal 274 | . 216 58 Explosive . | . . . Electromagnetic . | . . . Impact 558 | . . 558 Slashing . | . . . Piercing . | . . . Highest Corruption . | . . . Average Corruption . | . . . Corruption Purged . | . . . Overload Shots . | . . . Overflow Damage 9 | . . 9 Projectiles . | . . . Explosions . | . . . Melee 9 | . . 9 Knockbacks . | . . . Impact . | . . . Kinetic . | . . . Secondary . | . . . Self-Inflicted Damage . | . . . Shots . | . . . Rammed . | . . . Targets Rammed . | . . . Kicked . | . . . Crushed . | . . . Highest Temperature 387 | . 387 12 Average Temperature 199 | . 207 6 Received Heat Transfer 678 | . 132 546 Effects 3 | . 3 . Shutdowns 1 | . 1 . Energy Bleed 1 | . 1 . Interference 1 | . 1 . Siege Activations . | . . . Robots Corrupted . | . . . Combat Hostiles . | . . . Parts Fried 1 | . . 1 Impact Corruptions 5 | . . 5 Robots Melted 1 | . . 1 Combat Hostiles 1 | . . 1 Parts Melted 3 | . 2 1 Heat Transferred 666 | . 518 148 Parts Sabotaged . | . . . Parts Stolen . | . . . Parts Stripped . | . . . Power Chain Reactions . | . . . Missiles Intercepted . | . . . Alert | -11 -10 -9 ------- Run | Scr Mat Mat Peak Influence 232 | . 226 232 Average Influence 133 | . 139 145 Maximum Alert Level 1 | . 1 1 Low Security (%) 72 | 100 62 76 Level 1 27 | . 37 23 Level 2 . | . . . Level 3 . | . . . Level 4 . | . . . Level 5 . | . . . High Security . | . . . Max Security . | . . . Squads Dispatched 2 | . 1 1 Investigation . | . . . Extermination . | . . . Reinforcement 2 | . 1 1 Assault . | . . . Garrison . | . . . Intercept . | . . . Construction Impeded . | . . . Haulers Reinforced . | . . . Stealth | -11 -10 -9 --------- Run | Scr Mat Mat Distress Signals 4 | . . 4 Communications Jammed . | . . . Distress Signals . | . . . Times Spotted 40 | . 13 27 Peak Tracking Total 6 | . 4 6 Tactical Retreats 5 | . . 5 Traps | -11 -10 -9 ------- Run | Scr Mat Mat Traps Triggered . | . . . Indirectly . | . . . Trap Hack Attempts . | . . . Triggered . | . . . Disarmed . | . . . Reprogrammed . | . . . Reused . | . . . Traps Extracted . | . . . Installed . | . . . Triggered . | . . . Machines | -11 -10 -9 ---------- Run | Scr Mat Mat Machines Disabled . | . . . Max in Single Turn . | . . . Machines Sabotaged . | . . . Garrisons Compromised . | . . . Overloaded Fab Kills . | . . . Fab Network Shutdowns . | . . . Hacking | -11 -10 -9 --------- Run | Scr Mat Mat Machines Accessed 6 | . 3 3 Terminals 4 | . 2 2 Fabricators . | . . . Repair Stations . | . . . Recycling Units 2 | . 1 1 Scanalyzers . | . . . Garrison Access . | . . . Total Hacks 15 | . 6 9 Successful 9 | . 6 3 Failed 6 | . . 6 Catastrophic 1 | . . 1 Database Lockouts . | . . . Manual 1 | . . 1 Terminals 12 | . 5 7 Fabricators . | . . . Repair Stations . | . . . Recycling Units 3 | . 1 2 Scanalyzers . | . . . Garrison Access . | . . . Terminal Hacks 7 | . 5 2 Prototype ID Bank 2 | . 1 1 Level Access Points 1 | . 1 . Locate Traps 1 | . 1 . Maintenance Status 1 | . 1 . Hauler Manifests 1 | . 1 . Zone Layout 1 | . . 1 Fabricator Hacks . | . . . Repair Station Hacks . | . . . Recycling Unit Hacks 1 | . 1 . Report Inventory 1 | . 1 . Scanalyzer . | . . . Garrison Access Hacks . | . . . Unauthorized Hacks 1 | . . 1 Terminals 1 | . . 1 Assimilate 1 | . . 1 Fabricators . | . . . Repair Stations . | . . . Recycling Units . | . . . Scanalyzers . | . . . Garrison Access . | . . . Data Cores Recovered . | . . . Used . | . . . Hacking Detections 5 | . 2 3 Full Trace Events . | . . . Feedback Events . | . . . Feedback Blocked . | . . . Robot Schematics Acquired . | . . . Robots Built . | . . . Matter . | . . . Time . | . . . Total Robot Build Rating . | . . . Part Schematics Acquired . | . . . Parts Built . | . . . Matter . | . . . Time . | . . . Total Part Build Rating . | . . . Parts Repaired . | . . . Time . | . . . Parts Recycled . | . . . Recycled Matter . | . . . Retrieved Matter . | . . . Retrieved Components . | . . . Parts Scanalyzed . | . . . Part Schematics Acquired . | . . . Parts Damaged . | . . . Bothacking | -11 -10 -9 ------------ Run | Scr Mat Mat Used RIF Installer . | . . . Robots Hacked . | . . . Non-combat . | . . . Combat . | . . . Robot Hacks Applied . | . . . Relay Couplers Released . | . . . Robots Rewired . | . . . Allies Hacked . | . . . Hacks Repelled . | . . . Allies | -11 -10 -9 -------- Run | Scr Mat Mat Total Allies . | . . . Largest Group . | . . . Highest-Rated Group . | . . . Highest-Rated Ally . | . . . Total Orders . | . . . Ally Attacks . | . . . Total Damage . | . . . Kills . | . . . Allies Corrupted . | . . . Allies Melted . | . . . Intel | -11 -10 -9 ------- Run | Scr Mat Mat Robot Analysis Total . | . . . Derelict Logs Recovered . | . . . Drone Launches . | . . . Drone Recoveries . | . . . Exploration | -11 -10 -9 ------------- Run | Scr Mat Mat Turns Passed 956 | 63 383 510 Spaces Moved 418 | 50 209 159 Core 22 | 14 . 8 Treads 21 | . . 21 Legs 375 | 36 209 130 Wheels . | . . . Hover . | . . . Flight . | . . . Fastest Speed 50 | 50 120 120 Average Speed 126 | 100 127 132 Slowest Speed 300 | 120 150 300 Overloaded Moves . | . . . Propulsion Burnouts . | . . . Robots Hopped . | . . . Cave-ins Triggered . | . . . Exploration Rate (%) 18 | 4 42 10 Regions Visited 2 Branch Regions . Pre-discovered Areas . | . . . Known Exits Taken 1 | . 1 . Unknown Exits Taken 1 | 1 . . Scrap Searched . | . . . Spaces Dug . | . . . Terrain Destroyed . | . . . Melee . | . . . Projectile . | . . . AOE . | . . . Actions | -11 -10 -9 --------- Run | Scr Mat Mat Total 656 | 60 270 326 Wait 80 | . 10 70 Move 416 | 49 208 159 Hop . | . . . Pick Up 13 | 4 8 1 Fast Attach 10 | 4 1 5 Attach 11 | 2 3 6 Detach 2 | . . 2 Swap 6 | 1 4 1 Drop 4 | . 3 1 Fire 82 | . 33 49 Melee 32 | . . 32 Ram . | . . . Kick . | . . . Crush . | . . . Escape Stasis . | . . . Rewire . | . . . Trap . | . . . Miscellaneous . | . . . Route ------- -11/Scrapyard -10/Materials (discovered 3 exits: *Mat x3) -9/Materials History --------- Turn | Location | Event 8 | -11/Scrapyard | Discovered new exit (range 15) 64 | -11/Scrapyard | Entered Materials 317 | -10/Materials | Build established: Mutant 353 | -10/Materials | Discovered new exit (range 7) 403 | -10/Materials | Identified exit to Materials 447 | -10/Materials | Entered another Materials area 447 | -9/Materials | Evolved 2 slots: Utility x2 753 | -9/Materials | Core integrity fell below 50% 770 | -9/Materials | Lost 5 parts (1p2n1u1w) 910 | -9/Materials | Core integrity fell below 20% 938 | -9/Materials | Lost 3 parts (1p1u1w) 957 | -9/Materials | Destroyed by Y-45 Defender with Beam Rifle Last Messages --------------- 00901_ R-06 Scavenger collects Lgt. Treads. 00904_ Assault Rifle destroyed. 00906_ Lgt. Armor Plating destroyed. 00907_ Ion Engine destroyed. 00907_ R-06 Scavenger collects Tractor Beam. 00911_ L-31 Rogue destroyed. 00919_ G-34 Mercenary destroyed. 00932_ R-06 Scavenger destroyed. 00932_ K-01 Serf collects debris. 00933_ G-34 Mercenary destroyed. 00934_ K-01 Serf collects debris. 00951_ Y-45 Defender destroyed. 00952_ K-01 Serf collects debris. 00953_ K-01 Serf destroyed. 00954_ K-01 Serf collects debris. 00954_ Assault Rifle destroyed. 00954_ Lgt. Treads destroyed. 00954_ K-01 Serf collects debris. 00955_ Acquired 41 matter. 00957_ K-01 Serf collects debris. Map ----- +----------------------------------------------------+ | #?# "" # ###########??????????????????????? | | #?# # ########?????????????????????????? | | ##?######## # #?????????????????????????? | | ####????????# # #?????????????????????????? | | ????????????# # #?????????????????????????? | | ????????????# + ] / #?????????????????????????? | | ????????????# # ]// #?????????????????????????? | | ????????????# # ]// #?????????????????????????? | | ????????????# #########????????????????????????? | | ????????????# ## ????????????????????????? | | ????????????# ## ????????????????????????? | | ????????????# ## ????????????????????????? | | ????????????# ## ????????????????????????? | | ?############ ## ????????????????????????? | | ## ## ## ????????????????????????? | | ???????????## ## ?????????????????????????????? | | ???????????# ###+#############+####??????????? | | ???????????# % #??????????? | | ???????????+ T ^ #??????????? | | ???????????# =% ^ #??????????? | | ???????????# ##########+####### #??????????? | | ???????????# #####????????#% #???????????????? | | ???????????# ?????????????# #???????????????? | | ?????????### #####????????# """ #???????????????? | | ?????? % %!=*%#######%"Y #???????????????? | | ?????? Y [%%====%! @k%""" ]#???????????????? | | ?????? =%[kk===#######r #???????????????? | | ?????????##+##### ????????########???????????????? | | ?????????????????????????????????????????????????? | | ?????????????????????????????????????????????????? | | ?????????????????????????????????????????????????? | | ?????????????????????????????????????????????????? | | ?????????????????????????????????????????????????? | | ?????????????????????????????????????????????????? | | ?????????????????????????????????????????????????? | | ?????????????????????????????????????????????????? | | ?????????????????????????????????????????????????? | | ?????????????????????????????????????????????????? | | ?????????????????????????????????????????????????? | | ?????????????????????????????????????????????????? | | ?????????????????????????????????????????????????? | | ?????????????????????????????????????????????????? | | ?????????????????????????????????????????????????? | | ?????????????????????????????????????????????????? | | ?????????????????????????????????????????????????? | | ?????????????????????????????????????????????????? | | ?????????????????????????????????????????????????? | | ?????????????????????????????????????????????????? | | ?????????????????????????????????????????????????? | | ?????????????????????????????????????????????????? | +----------------------------------------------------+ Best States ------------- Heat Dissipation 42 Energy Generation 14 Energy Capacity 250 Matter Stores 300 Matter Capacity 300 Sight Range 16 Terrain Scan Density 10 Armor Coverage 150 Evasion (%) 50 Recoil Reduction 2 Item Schematics ----------------- None Robot Schematics ------------------ None Fabricated ------------ Nothing Alien Tech Used ----------------- None Achievements -------------- None Challenges ------------ None Game ------ Seed MasterArmoredBay Manual? 0 Play Time 00:13:54 Cumulative 18.6 hours Start 2020.07.01 @ 01:27:31 End 2020.07.01 @ 01:41:27 Sessions 1 Manual Loads 0 Difficulty Rogue Special Mode None Game No. 30 Rogue 30 Adventurer 0 Explorer 0 Win Type - Total 0 Types 0/0/0/0/0/0/0 Lore% 27 Gallery% 30 Achievement% 28 Wizard Run 0 Options --------- ASCII 0 Keyboard 0 Movement Numpad Keybinds 0 Fullscreen 2 Font 16/Terminus Map View 76x50 Tactical HUD 1 Map Filters NONE Filters NONE Steam 1 RUN: 520244af-c5b2-48f6-9ab8-a7c6f37b4099